Workbook

Sheet 0 (hidden)

Sheet НПЗ
B300: Показатели/Годы | C300: 0 | D300: 1 | E300: 2 | F300: 3 | G300: 4 | H300: 5 | I300: 6 | J300: 7 | K300: 8 | L300: 9 | M300: 10
B301: Выход продукции | F301: =$C$371 -> 6000000 | G301: 6000000 | H301: 6000000 | I301: 6000000 | J301: 6000000 | K301: 6000000 | L301: 6000000 | M301: 6000000
B302: Сжиженный газ | F302: =F$301*$C373 -> 225000 | G302: 225000 | H302: 225000 | I302: 225000 | J302: 225000 | K302: 225000 | L302: 225000 | M302: 225000
B303: Бензин А-76 неэтилированный | F303: 1000000 | G303: 1000000 | H303: 1000000 | I303: 1000000 | J303: 1000000 | K303: 1000000 | L303: 1000000 | M303: 1000000
B304: Бензин АИ-93 неэтилированный | F304: 1000000 | G304: 1000000 | H304: 1000000 | I304: 1000000 | J304: 1000000 | K304: 1000000 | L304: 1000000 | M304: 1000000
B305: Топливо дизельное | F305: 2000000 | G305: 2000000 | H305: 2000000 | I305: 2000000 | J305: 2000000 | K305: 2000000 | L305: 2000000 | M305: 2000000
B306: Мазут | F306: 1000000 | G306: 1000000 | H306: 1000000 | I306: 1000000 | J306: 1000000 | K306: 1000000 | L306: 1000000 | M306: 1000000
B307: Битум дорожный | F307: 560000 | G307: 560000 | H307: 560000 | I307: 560000 | J307: 560000 | K307: 560000 | L307: 560000 | M307: 560000
B308: Сера | F308: 50000 | G308: 50000 | H308: 50000 | I308: 50000 | J308: 50000 | K308: 50000 | L308: 50000 | M308: 50000
B309: Цены | F309: =$F308*C380 -> 0
B310: Сжиженный газ | F310: =$C$381 -> 65 | G310: 65 | H310: 65 | I310: 65 | J310: 65 | K310: 65 | L310: 65 | M310: 65
B311: Бензин А-76 неэтилированный | F311: =$C$382 -> 449 | G311: 449 | H311: 449 | I311: 449 | J311: 449 | K311: 449 | L311: 449 | M311: 449
B312: Бензин АИ-93 неэтилированный | F312: =$C$383 -> 478 | G312: 478 | H312: 478 | I312: 478 | J312: 478 | K312: 478 | L312: 478 | M312: 478
B313: Топливо дизельное | F313: =$C$384 -> 461 | G313: 461 | H313: 461 | I313: 461 | J313: 461 | K313: 461 | L313: 461 | M313: 461
B314: Мазут | F314: =$C$385 -> 231 | G314: 231 | H314: 231 | I314: 231 | J314: 231 | K314: 231 | L314: 231 | M314: 231
B315: Битум дорожный | F315: =$C$386 -> 180 | G315: 180 | H315: 180 | I315: 180 | J315: 180 | K315: 180 | L315: 180 | M315: 180
B316: Сера | F316: =$C$387 -> 95 | G316: 95 | H316: 95 | I316: 95 | J316: 95 | K316: 95 | L316: 95 | M316: 95
B318: Выручка | F318: =SUM(F319:F325) -> 2200175000 | G318: =SUM(G319:G325) -> 2200175000 | H318: 2200175000 | I318: 2200175000 | J318: 2200175000 | K318: 2200175000 | L318: 2200175000 | M318: 2200175000
B319: Сжиженный газ | F319: =F302*F310 -> 14625000 | G319: =G302*G310 -> 14625000 | H319: 14625000 | I319: 14625000 | J319: 14625000 | K319: 14625000 | L319: 14625000 | M319: 14625000
B320: Бензин А-76 неэтилированный | F320: =F303*F311 -> 449000000 | G320: 449000000 | H320: 449000000 | I320: 449000000 | J320: 449000000 | K320: 449000000 | L320: 449000000 | M320: 449000000
B321: Бензин АИ-93 неэтилированный | F321: 478000000 | G321: 478000000 | H321: 478000000 | I321: 478000000 | J321: 478000000 | K321: 478000000 | L321: 478000000 | M321: 478000000
B322: Топливо дизельное | F322: 922000000 | G322: 922000000 | H322: 922000000 | I322: 922000000 | J322: 922000000 | K322: 922000000 | L322: 922000000 | M322: 922000000
B323: Мазут | F323: 231000000 | G323: 231000000 | H323: 231000000 | I323: 231000000 | J323: 231000000 | K323: 231000000 | L323: 231000000 | M323: 231000000
B324: Битум дорожный | F324: 100800000 | G324: 100800000 | H324: 100800000 | I324: 100800000 | J324: 100800000 | K324: 100800000 | L324: 100800000 | M324: 100800000
B325: Сера | F325: 4750000 | G325: 4750000 | H325: 4750000 | I325: 4750000 | J325: 4750000 | K325: 4750000 | L325: 4750000 | M325: 4750000
B326: Себестоимость | E326: =SUM(E327:E336) -> 0 | F326: 810089000 | G326: 810089000 | H326: 810089000 | I326: 810089000 | J326: 810089000 | K326: 810089000 | L326: 810089000 | M326: 810089000
B327: Сырье и материалы | F327: =F$301*$C389 -> 743118000 | G327: 743118000 | H327: 743118000 | I327: 743118000 | J327: 743118000 | K327: 743118000 | L327: 743118000 | M327: 743118000
B328: Энергия | F328: 0 | G328: 0 | H328: 0 | I328: 0 | J328: 0 | K328: 0 | L328: 0 | M328: 0
B329: Зарплата производственного персонала | F329: 485000 | G329: 485000 | H329: 485000 | I329: 485000 | J329: 485000 | K329: 485000 | L329: 485000 | M329: 485000
B330: Обслуживание и ремонт оборудования | F330: 20000000 | G330: 20000000 | H330: 20000000 | I330: 20000000 | J330: 20000000 | K330: 20000000 | L330: 20000000 | M330: 20000000
B331: Административные расходы | F331: 559000 | G331: 559000 | H331: 559000 | I331: 559000 | J331: 559000 | K331: 559000 | L331: 559000 | M331: 559000
B332: Накладные | F332: 1229000 | G332: 1229000 | H332: 1229000 | I332: 1229000 | J332: 1229000 | K332: 1229000 | L332: 1229000 | M332: 1229000
B333: Прочие | F333: 0 | G333: 0 | H333: 0 | I333: 0 | J333: 0 | K333: 0 | L333: 0 | M333: 0
B334: Транспортный налог | F334: 40000 | G334: 40000 | H334: 40000 | I334: 40000 | J334: 40000 | K334: 40000 | L334: 40000 | M334: 40000
B335: Налог на имущество | F335: 5600000 | G335: 5600000 | H335: 5600000 | I335: 5600000 | J335: 5600000 | K335: 5600000 | L335: 5600000 | M335: 5600000
B336: Амортизация | F336: 39058000 | G336: 39058000 | H336: 39058000 | I336: 39058000 | J336: 39058000 | K336: 39058000 | L336: 39058000 | M336: 39058000
B337: Балансовая прибыль | F337: =F318-F326 -> 1390086000 | G337: =G318-G326 -> 1390086000 | H337: 1390086000 | I337: 1390086000 | J337: 1390086000 | K337: 1390086000 | L337: 1390086000 | M337: 1390086000
B338: Налог на прибыль | F338: =F337*$C$401 -> 389224080 | G338: 389224080 | H338: 389224080 | I338: 389224080 | J338: 389224080 | K338: 389224080 | L338: 389224080 | M338: 389224080
B339: Чистая прибыль | F339: =F337-F338 -> 1000861920 | G339: =G337-G338 -> 1000861920 | H339: =H337-H338 -> 1000861920 | I339: 1000861920 | J339: 1000861920 | K339: 1000861920 | L339: 1000861920 | M339: 1000861920
B340: Капзатраты | D340: =0.4*$C$371*$C$400 -> 349977600 | E340: =0.6*$C$371*$C$400 -> 524966400
B341: Поток наличности | D341: =D339+D336-D340 -> -349977600 | E341: -524966400 | F341: 1039919920 | G341: 1039919920 | H341: 1039919920 | I341: 1039919920 | J341: 1039919920 | K341: 1039919920 | L341: 1039919920 | M341: 1039919920
B342: коэффициент дисконтирования | E342: =1/(1+$C$403)^(E300-$E$300) -> 1 | F342: 0.8695652174 | G342: 0.7561436673 | H342: 0.6575162324 | I342: 0.5717532456 | J342: 0.4971767353 | K342: 0.4323275959 | L342: 0.3759370399 | M342: 0.3269017738
B343: Дисконтированный поток наличности | D343: =D341 -> -349977600 | E343: =E341 -> -524966400 | F343: =F341*F342 -> 904278191.3 | G343: 786328862 | H343: 683764227.8 | I343: 594577589.4 | J343: 517023990.8 | K343: 449586079 | L343: 390944416.5 | M343: 339951666.5
B344: Дисконтированный поток наличности | C344: 0 | D344: =D343 -> -349977600 | E344: =D344+E343 -> -874944000 | F344: 29334191.3 | G344: 815663053.3 | H344: 1499427281 | I344: 2094004871 | J344: 2611028861 | K344: 3060614940 | L344: 3451559357 | M344: 3791511023
B345: NPV | D345: =MAX(D344:M344) -> 3791511023
B346: IRR (%) | D346: =IRR(D341:M341) -> 0.8747152646
B347: DPP (лет) | D347: =COUNTIF(D344:I344,"<=0")+ABS(OFFSET(D344,0,COUNTIF(D344:I344,"<=0")-1))/(ABS(OFFSET(D344,0,COUNTIF(D344:I344,"<=0")-1))+OFFSET(D344,0,COUNTIF(D344:I344,"<=0"))) -> 2.967560656
B348: PI | D348: =ROUND(1+D345/SUM(D340:I340),1) -> 5.3
B352: Периоды | C352: 0 | D352: =C352+1 -> 1 | E352: 2 | F352: 3 | G352: 4 | H352: 5 | I352: 6
B353: Поступление кредита | C353: 0 | D353: =IF(SUM(C353:$C$353)<=$C$363-1,$C$363/$C$365,0) -> 437472000 | E353: =IF(SUM($C353:D$353)<=$C$363-1,$C$363/$C$365,0) -> 437472000 | F353: =IF(SUM($C353:E$353)<=$C$363-1,$C$363/$C$365,0) -> 0 | G353: =IF(SUM($C353:F$353)<=$C$363-1,$C$363/$C$365,0) -> 0 | H353: =IF(SUM($C353:G$353)<=$C$363-1,$C$363/$C$365,0) -> 0 | I353: =IF(SUM($C353:H$353)<=$C$363-1,$C$363/$C$365,0) -> 0
B354: Гашение основного долга (тело кредита) | C354: 0 | D354: =D357 -> 218736000 | E354: 218736000 | F354: 218736000 | G354: 218736000 | H354: 0 | I354: 0
B355: Гашение процентов по кредиту | C355: 0 | D355: 1224921.6 | E355: 918691.2 | F355: 612460.8 | G355: 306230.4 | H355: 0 | I355: 0
B356: Сумма платежа (тело + проценты) | C356: 0 | D356: =D357+D358 -> 219960921.6 | E356: 219654691.2 | F356: 219348460.8 | G356: 219042230.4 | H356: 0 | I356: 0
B357: Гашение основного долга (тело кредита) | C357: 0 | D357: =$C$363/$C$366 -> 218736000 | E357: =IF(D362>0,$C$363/$C$366,0) -> 218736000 | F357: =IF(E362>0,$C$363/$C$366,0) -> 218736000 | G357: =IF(F362>0,$C$363/$C$366,0) -> 218736000 | H357: =IF(G362>0,$C$363/$C$366,0) -> 0 | I357: =IF(H362>0,$C$363/$C$366,0) -> 0
B358: Проценты | C358: 0 | D358: =IF(D357=0,0,C363*$C$364) -> 1224921.6 | E358: =IF(E357=0,0,D362*$C$364) -> 918691.2 | F358: =IF(F357=0,0,E362*$C$364) -> 612460.8 | G358: =IF(G357=0,0,F362*$C$364) -> 306230.4 | H358: =IF(H357=0,0,G362*$C$364) -> 0 | I358: =IF(I357=0,0,H362*$C$364) -> 0
B359: Гашение долга S нарастающим итогом | C359: 0 | D359: =IF(D357=0,0,D357+C359) -> 218736000 | E359: 437472000 | F359: 656208000 | G359: 874944000 | H359: 0 | I359: 0
B360: Проценты Sp нарастающим итогом | C360: 0 | D360: =IF(D357=0,0,D358+C360) -> 1224921.6 | E360: 2143612.8 | F360: 2756073.6 | G360: 3062304 | H360: 0 | I360: 0
B361: Сумма платежа St нарастающим итогом | C361: 0 | D361: =D359+D360 -> 219960921.6 | E361: 439615612.8 | F361: 658964073.6 | G361: 878006304 | H361: 0 | I361: 0
B362: Остаток долга R нарастающим итогом | C362: 0 | D362: =IF(C363>D357,C363-D357,0) -> 656208000 | E362: =IF(D362>E357,D362-E357,0) -> 437472000 | F362: =IF(E362>F357,E362-F357,0) -> 218736000 | G362: =IF(F362>G357,F362-G357,0) -> 0 | H362: =IF(G362>H357,G362-H357,0) -> 0 | I362: =IF(H362>I357,H362-I357,0) -> 0
B363: Сумма кредита | C363: =SUM(НПЗ!D340:E340) -> 874944000
B364: Ставка кредита | C364: 0.0014
B365: Период поступления кредита | C365: 2
B366: Период выплаты кредита | C366: 4
B370: Исходные данные
B371: Мощность завода | C371: 6000000
B372: Продукция
B373: Сжиженный газ | C373: 0.0375
B374: Бензин А-76 неэтилированный | C374: 0.1666666667
B375: Бензин АИ-93 неэтилированный | C375: 0.1666666667
B376: Топливо дизельное | C376: 0.3333333333
B377: Мазут | C377: 0.1666666667
B378: Битум дорожный | C378: 0.09333333333
B379: Сера | C379: 0.008333333333
B380: Цены $/т
B381: Сжиженный газ | C381: 65
B382: Бензин А-76 неэтилированный | C382: 449
B383: Бензин АИ-93 неэтилированный | C383: 478
B384: Топливо дизельное | C384: 461
B385: Мазут | C385: 231
B386: Битум дорожный | C386: 180
B387: Сера | C387: 95
B388: Себестоимость $/т | C388: =SUM(C389:C398) -> 135.0148333
B389: Сырье и материалы | C389: 123.853
B390: Энергия | C390: 0
B391: Зарплата производственного перс. | C391: 0.08083333333
B392: Обслуживание и ремонт оборудования | C392: 3.333333333
B393: Административные расходы | C393: 0.09316666667
B394: Накладные | C394: 0.2048333333
B395: Прочие | C395: 0
B396: Транспортный налог | C396: 0.006666666667
B397: Налог на имущество | C397: 0.9333333333
B398: Амортизация | C398: 6.509666667
B399: Акциз долл/тонну | C399: 46.88
B400: Капитальные затраты | C400: 145.824
B401: Налог на прибыль | C401: 0.28
B402: Прочее
B403: Ставка дисконт | C403: 0.15
B404: Курс доллара | C404: 60
B405: Инфляция | C405: 0.01
B406: (рубли) | C406: (доллары)
B407: (доллары)
B450: Анализ чувствительности ДИАГРАММА ТОРНАДО
C451: 1.25 | D451: 1 | E451: 0.75
B452: Цена Дизельное топливо | C452: 4536226901 | D452: 3791511023 | E452: 3046795146
B453: Себестоимость 1т | C453: 4010247023 | D453: 3791511023 | E453: 3572775023
B454: Капитальные затраты | C454: 4445834386 | D454: 3791511023 | E454: 3137187661
B461: Цена Дизельное топливо | C461: 4536226901 | D461: 3791511023 | E461: 3046795146
B462: Капитальные затраты | C462: 4445834386 | D462: 3791511023 | E462: 3137187661
B463: Себестоимость 1т | C463: 4010247023 | D463: 3791511023 | E463: 3572775023
N641: Добыча, | T641: Весо-вая обвод-нен-ность, | U641: Коэф-фициент нефте-извле-чения, доли ед. | V641: Закачка воды, м3 | X641: Фонд скважин на конец периода | AA641: Дебит, | AC641: Прие-мис-тость по воде, м3/сут
N642: тонн | AA642: т/сут
N643: нефти | P643: воды | R643: жидкости
N644: теку-щая | O644: накоп-лен-ная | P644: текущая | Q644: накоплен-ная | R644: текущая | S644: накоп-лен-ная | V644: теку-щая | W644: накоп-лен-ная | X644: всего | Y644: добыва-ющих | Z644: нагне-татель-ных | AA644: нефти | AB644: жид-кости
N645: 2 | O645: 3 | P645: 4 | Q645: 5 | R645: 6 | S645: 7 | T645: 8 | U645: 9 | V645: 10 | W645: 11 | X645: 12 | Y645: 13 | Z645: 14 | AA645: 15 | AB645: 16 | AC645: 17
N646: =TRANSPOSE($C$148:$I$148) -> 0 | O646: =TRANSPOSE($C$196:$I$196) -> 0 | P646: =R646-N646 -> 0 | Q646: =P646 -> 0 | R646: =TRANSPOSE($C$191:$I$191) -> 0 | S646: =R646 -> 0 | T646: =TRANSPOSE($C$185:$I$185) -> 0 | U646: =TRANSPOSE($C$197:$I$197) -> 0 | V646: =TRANSPOSE($C$201:$I$201) -> 0 | W646: =TRANSPOSE($C$202:$I$202) -> 0 | X646: =SUM(Y646:Z646) -> 0 | Y646: =TRANSPOSE($C$172:$I$172) -> 0 | Z646: =TRANSPOSE($C$179:$I$179) -> 0 | AA646: =TRANSPOSE($C$188:$I$188) -> 0 | AB646: =TRANSPOSE($C$182:$I$182) -> 0 | AC646: =TRANSPOSE($C$190:$I$190) -> 0
N647: 0 | O647: 0 | P647: =R647-N647 -> 0 | Q647: =P647+Q646 -> 0 | R647: 0 | S647: =R647+S646 -> 0 | T647: 0 | U647: 0 | V647: 0 | W647: 0 | X647: =SUM(Y647:Z647) -> 0 | Y647: 0 | Z647: 0 | AA647: 0 | AB647: 0 | AC647: 0
N648: 0 | O648: 0 | P648: =R648-N648 -> 0 | Q648: =P648+Q647 -> 0 | R648: 0 | S648: 0 | T648: 0 | U648: 0 | V648: 0 | W648: 0 | X648: 0 | Y648: 0 | Z648: 0 | AA648: 0 | AB648: 0 | AC648: 0
N649: 0 | O649: 0 | P649: 0 | Q649: 0 | R649: 0 | S649: 0 | T649: 0 | U649: 0 | V649: 0 | W649: 0 | X649: 0 | Y649: 0 | Z649: 0 | AA649: 0 | AB649: 0 | AC649: 0
N650: 0 | O650: 0 | P650: 0 | Q650: 0 | R650: 0 | S650: 0 | T650: 0 | U650: 0 | V650: 0 | W650: 0 | X650: 0 | Y650: 0 | Z650: 0 | AA650: 0 | AB650: 0 | AC650: 0
N651: 0 | O651: 0 | P651: 0 | Q651: 0 | R651: 0 | S651: 0 | T651: 0 | U651: 0 | V651: 0 | W651: 0 | X651: 0 | Y651: 0 | Z651: 0 | AA651: 0 | AB651: 0 | AC651: 0
N652: 0 | O652: 0 | P652: 0 | Q652: 0 | R652: 0 | S652: 0 | T652: 0 | U652: 0 | V652: 0 | W652: 0 | X652: 0 | Y652: 0 | Z652: 0 | AA652: 0 | AB652: 0 | AC652: 0
Q664: =P664+Q663 -> 
Q680: =P680+Q679 -> 
AM688: Таблица 38 -Чистый доход недропользователя, руб.
AM689: Годы и периоды | AN689: Выручка от реализации продукции н+г без транс. и эксп. пошл. | AO689: Эксплуатационные затраты, налоги и отчисления (без аммор.) | AP689: Внереализационные расходы | AQ689: Чистый результат | AR689: Амортиза-ционные отчисления | AS689: Поступление финансов | AT689: Капитальные вложения | AU689: Чистый доход (СF) | AW689: Чистый дисконтированный доход (NPV)
AU690: годовой | AV690: накопленный | AW690: годовой | AX690: накопленный
AM691: 1 | AN691: 2 | AO691: 3 | AP691: 4 | AQ691: 5 | AR691: 6 | AS691: 7 | AT691: 8 | AU691: 9 | AV691: 10 | AW691: 11 | AX691: 12
AM692: =TRANSPOSE($C$147:$I$147) -> 0 | AN692: =TRANSPOSE($C$474:$I$474) -> 0 | AO692: =TRANSPOSE($C$480:$I$480) -> 0 | AQ692: =TRANSPOSE($C$511:$I$511) -> 0 | AR692: =TRANSPOSE($C$485:$I$485) -> 0 | AS692: =AQ692+AR692 -> 0 | AT692: =TRANSPOSE($C$525:$I$525) -> 0 | AU692: =TRANSPOSE($C$541:$I$541) -> 0 | AV692: =TRANSPOSE($C$542:$I$542) -> 0 | AW692: =TRANSPOSE($C$544:$I$544) -> 0 | AX692: =TRANSPOSE($C$545:$I$545) -> 0
AM693: 0 | AN693: 0 | AO693: 0 | AQ693: 0 | AR693: 0 | AS693: =AQ693+AR693 -> 0 | AT693: 0 | AU693: 0 | AV693: 0 | AW693: 0 | AX693: 0
AM694: 0 | AN694: 0 | AO694: 0 | AQ694: 0 | AR694: 0 | AS694: 0 | AT694: 0 | AU694: 0 | AV694: 0 | AW694: 0 | AX694: 0
AM695: 0 | AN695: 0 | AO695: 0 | AQ695: 0 | AR695: 0 | AS695: 0 | AT695: 0 | AU695: 0 | AV695: 0 | AW695: 0 | AX695: 0
AM696: 0 | AN696: 0 | AO696: 0 | AQ696: 0 | AR696: 0 | AS696: 0 | AT696: 0 | AU696: 0 | AV696: 0 | AW696: 0 | AX696: 0
AM697: 0 | AN697: 0 | AO697: 0 | AQ697: 0 | AR697: 0 | AS697: 0 | AT697: 0 | AU697: 0 | AV697: 0 | AW697: 0 | AX697: 0
AM698: 0 | AN698: 0 | AO698: 0 | AQ698: 0 | AR698: 0 | AS698: 0 | AT698: 0 | AU698: 0 | AV698: 0 | AW698: 0 | AX698: 0
AM737: Таблица 39 -Чистый доход недропользователя (с учетом кредита) руб.
AM738: Годы и периоды | AN738: Выручка от реализации продукции | AO738: Эксплуатационные затраты, налоги и отчисления | AP738: Внереализационные расходы | AQ738: Чистый результат | AR738: Амортизационные отчисления | AS738: Поступление кредита | AT738: Поступление финансов | AU738: Капитальные вложения | AV738: Выплата кредита (основного долга +проценты) | AW738: Чистый доход (CF)
AW739: годовой | AX739: накопленный
AM740: 1 | AN740: 2 | AO740: 3 | AP740: 4 | AQ740: 5 | AR740: 6 | AS740: 7 | AT740: 8 | AU740: 9 | AV740: 10 | AW740: 11 | AX740: 12
AM741: =TRANSPOSE($C$147:$I$147) -> 0 | AN741: =TRANSPOSE($C$474:$I$474) -> 0 | AO741: =TRANSPOSE($C$480:$I$480) -> 0 | AQ741: =TRANSPOSE($C$511:$I$511) -> 0 | AR741: =TRANSPOSE($C$485:$I$485) -> 0 | AS741: =TRANSPOSE($C$549:$I$549) -> 0 | AT741: =AR741+AS741 -> 0 | AU741: =TRANSPOSE($C$525:$I$525) -> 0 | AV741: =TRANSPOSE($C$550:$I$550) -> 0 | AW741: =TRANSPOSE($C$551:$I$551) -> 0 | AX741: =AW741 -> 0
AM742: 0 | AN742: 0 | AO742: 0 | AQ742: 0 | AR742: 0 | AS742: 0 | AT742: =AR742+AS742 -> 0 | AU742: 0 | AV742: 0 | AW742: 0 | AX742: =AX741+AW742 -> 0
AM743: 0 | AN743: 0 | AO743: 0 | AQ743: 0 | AR743: 0 | AS743: 0 | AT743: 0 | AU743: 0 | AV743: 0 | AW743: 0 | AX743: =AX742+AW743 -> 0
AM744: 0 | AN744: 0 | AO744: 0 | AQ744: 0 | AR744: 0 | AS744: 0 | AT744: 0 | AU744: 0 | AV744: 0 | AW744: 0 | AX744: 0
AM745: 0 | AN745: 0 | AO745: 0 | AQ745: 0 | AR745: 0 | AS745: 0 | AT745: 0 | AU745: 0 | AV745: 0 | AW745: 0 | AX745: 0
AM746: 0 | AN746: 0 | AO746: 0 | AQ746: 0 | AR746: 0 | AS746: 0 | AT746: 0 | AU746: 0 | AV746: 0 | AW746: 0 | AX746: 0
AM747: 0 | AN747: 0 | AO747: 0 | AQ747: 0 | AR747: 0 | AS747: 0 | AT747: 0 | AU747: 0 | AV747: 0 | AW747: 0 | AX747: 0

Sheet 00 (hidden)

Sheet Лист1
B1: https://strategy24.ru/66/projects/project/view?slug=biznes-plan-neftepererabatyvayushchego-zavoda-ooo-npz-sos-va&category=business
